[Event "Titled Tuesday Blitz March 22 Early 2022"]
[White "Przybylski, Wojciech"]
[Black "Svidler, Peter"]
[WhiteFideId "1117599"]
[BlackFideId "4102142"]
[WhiteElo "2133"]
[BlackElo "2725"]
[Result "1/2-1/2"]
[Round "01"]
[TimeControl "180+1"]
[Date "2022.03.22"]
[WhiteClock "0:00:14"]
[BlackClock "0:00:20"]

1. e4 {[%clk 0:03:00]}  c5 {[%clk 0:02:59]} 2. Nf3 {[%clk 0:02:59]}  d6 {[%clk 0:02:59]} 3. Bb5+ {[%clk 0:02:58]}  Nd7 {[%clk 0:02:58]} 4. O-O {[%clk 0:02:57]}  a6 {[%clk 0:02:57]} 5. Bd3 {[%clk 0:02:53]}  Ngf6 {[%clk 0:02:53]} 6. c3 {[%clk 0:02:52]}  b5 {[%clk 0:02:51]} 7. a4 {[%clk 0:02:51]}  c4 {[%clk 0:02:44]} 8. Bc2 {[%clk 0:02:51]}  Bb7 {[%clk 0:02:44]} 9. Re1 {[%clk 0:02:50]}  e6 {[%clk 0:02:41]} 10. d4 {[%clk 0:02:40]}  cxd3 {[%clk 0:02:34]} 11. Bxd3 {[%clk 0:02:40]}  Be7 {[%clk 0:02:25]} 12. axb5 {[%clk 0:02:36]}  axb5 {[%clk 0:02:25]} 13. Rxa8 {[%clk 0:02:33]}  Qxa8 {[%clk 0:02:25]} 14. Bxb5 {[%clk 0:02:30]}  Bxe4 {[%clk 0:02:23]} 15. Nbd2 {[%clk 0:02:30]}  Bc6 {[%clk 0:02:22]} 16. Bxc6 {[%clk 0:02:12]}  Qxc6 {[%clk 0:02:23]} 17. Nd4 {[%clk 0:02:13]}  Qb7 {[%clk 0:02:19]} 18. Qb3 {[%clk 0:02:01]}  Qxb3 {[%clk 0:02:18]} 19. N2xb3 {[%clk 0:02:01]}  Ne5 {[%clk 0:02:16]} 20. f4 {[%clk 0:01:53]}  Nd3 {[%clk 0:02:14]} 21. Rd1 {[%clk 0:01:51]}  Nxc1 {[%clk 0:02:12]} 22. Rxc1 {[%clk 0:01:51]}  Kd7 {[%clk 0:01:50]} 23. Ra1 {[%clk 0:01:51]}  Rc8 {[%clk 0:01:50]} 24. Ra7+ {[%clk 0:01:41]}  Rc7 {[%clk 0:01:50]} 25. Rxc7+ {[%clk 0:01:37]}  Kxc7 {[%clk 0:01:51]} 26. Kf2 {[%clk 0:01:36]}  d5 {[%clk 0:01:48]} 27. h3 {[%clk 0:01:30]}  Ne4+ {[%clk 0:01:47]} 28. Ke3 {[%clk 0:01:28]}  Nd6 {[%clk 0:01:47]} 29. Nd2 {[%clk 0:01:26]}  Kd7 {[%clk 0:01:45]} 30. g4 {[%clk 0:01:25]}  f6 {[%clk 0:01:44]} 31. N4f3 {[%clk 0:01:23]}  Bd8 {[%clk 0:01:43]} 32. Kd3 {[%clk 0:01:22]}  Bc7 {[%clk 0:01:41]} 33. c4 {[%clk 0:01:20]}  Nxc4 {[%clk 0:01:35]} 34. Nxc4 {[%clk 0:01:11]}  dxc4+ {[%clk 0:01:36]} 35. Ke4 {[%clk 0:01:04]}  Kd6 {[%clk 0:00:53]} 36. Kd4 {[%clk 0:00:57]}  Kc6 {[%clk 0:00:39]} 37. Ke4 {[%clk 0:00:39]}  Kc5 {[%clk 0:00:36]} 38. Nd4 {[%clk 0:00:38]}  f5+ {[%clk 0:00:26]} 39. gxf5 {[%clk 0:00:35]}  exf5+ {[%clk 0:00:27]} 40. Nxf5 {[%clk 0:00:34]}  g6 {[%clk 0:00:28]} 41. Nd4 {[%clk 0:00:32]}  Kb4 {[%clk 0:00:24]} 42. f5 {[%clk 0:00:20]}  gxf5+ {[%clk 0:00:24]} 43. Nxf5 {[%clk 0:00:20]}  Kb3 {[%clk 0:00:21]} 44. Ne3 {[%clk 0:00:20]}  Bd8 {[%clk 0:00:21]} 45. Kd5 {[%clk 0:00:15]}  c3 {[%clk 0:00:19]} 46. bxc3 {[%clk 0:00:15]}  Kxc3 {[%clk 0:00:20]} 47. Ke4 {[%clk 0:00:15]}  Kd2 {[%clk 0:00:20]} 48. Kf3 {[%clk 0:00:15]}  Kd3 {[%clk 0:00:20]} 49. Ng4 {[%clk 0:00:14]}  Kd4 {[%clk 0:00:20]} 1/2-1/2


[Site "https://www.chess.com"]

[Event "Titled Tuesday Blitz March 22 Early 2022"]
[White "Ruge, Edison"]
[Black "Lewtak, Damian"]
[WhiteFideId "4401000"]
[BlackFideId "1141724"]
[WhiteElo "2175"]
[BlackElo "2362"]
[Result "0-1"]
[Round "01"]
[TimeControl "180+1"]
[Date "2022.03.22"]
[WhiteClock "0:00:01"]
[BlackClock "0:00:07"]

1. e4 {[%clk 0:02:59]}  c5 {[%clk 0:03:00]} 2. Nf3 {[%clk 0:02:59]}  d6 {[%clk 0:03:00]} 3. d3 {[%clk 0:02:59]}  Nc6 {[%clk 0:03:00]} 4. Nbd2 {[%clk 0:02:59]}  g6 {[%clk 0:03:00]} 5. g3 {[%clk 0:03:00]}  Bg7 {[%clk 0:03:01]} 6. Bg2 {[%clk 0:03:01]}  e6 {[%clk 0:02:57]} 7. O-O {[%clk 0:03:01]}  Nge7 {[%clk 0:02:57]} 8. Re1 {[%clk 0:03:01]}  O-O {[%clk 0:02:57]} 9. c3 {[%clk 0:02:58]}  Rb8 {[%clk 0:02:54]} 10. h4 {[%clk 0:02:58]}  h6 {[%clk 0:02:52]} 11. h5 {[%clk 0:02:59]}  g5 {[%clk 0:02:53]} 12. Nh2 {[%clk 0:02:59]}  Ne5 {[%clk 0:02:50]} 13. Ndf1 {[%clk 0:02:59]}  c4 {[%clk 0:02:48]} 14. dxc4 {[%clk 0:02:56]}  Nxc4 {[%clk 0:02:48]} 15. f4 {[%clk 0:02:55]}  gxf4 {[%clk 0:02:32]} 16. gxf4 {[%clk 0:02:52]}  Nxb2 {[%clk 0:02:26]} 17. Bxb2 {[%clk 0:02:44]}  Qb6+ {[%clk 0:02:25]} 18. Kh1 {[%clk 0:02:42]}  Qxb2 {[%clk 0:02:25]} 19. Qxd6 {[%clk 0:02:39]}  Nc6 {[%clk 0:02:20]} 20. e5 {[%clk 0:02:39]}  Rd8 {[%clk 0:02:19]} 21. Qc5 {[%clk 0:02:38]}  b6 {[%clk 0:02:11]} 22. Qc4 {[%clk 0:02:20]}  Na5 {[%clk 0:02:09]} 23. Qc7 {[%clk 0:02:20]}  Ba6 {[%clk 0:01:56]} 24. Rad1 {[%clk 0:02:19]}  Rdc8 {[%clk 0:01:36]} 25. Qe7 {[%clk 0:02:15]}  Qxc3 {[%clk 0:01:23]} 26. Re3 {[%clk 0:02:04]}  Qc5 {[%clk 0:01:21]} 27. Qh4 {[%clk 0:01:57]}  Qf8 {[%clk 0:01:05]} 28. Rd7 {[%clk 0:01:51]}  Bb7 {[%clk 0:01:01]} 29. Rg3 {[%clk 0:01:43]}  Bxg2+ {[%clk 0:00:58]} 30. Kxg2 {[%clk 0:01:42]}  Kh8 {[%clk 0:00:57]} 31. Rxa7 {[%clk 0:01:35]}  Nc6 {[%clk 0:00:54]} 32. Ra4 {[%clk 0:01:29]}  Ne7 {[%clk 0:00:49]} 33. Qg4 {[%clk 0:01:17]}  Nf5 {[%clk 0:00:48]} 34. Rd3 {[%clk 0:01:15]}  Rc2+ {[%clk 0:00:47]} 35. Kh1 {[%clk 0:01:08]}  Qc5 {[%clk 0:00:46]} 36. Rd2 {[%clk 0:00:56]}  Qc6+ {[%clk 0:00:42]} 37. Qg2 {[%clk 0:00:48]}  Qxa4 {[%clk 0:00:28]} 38. Rxc2 {[%clk 0:00:48]}  Qxf4 {[%clk 0:00:29]} 39. Rf2 {[%clk 0:00:45]}  Qxe5 {[%clk 0:00:27]} 40. Ng4 {[%clk 0:00:43]}  Qb5 {[%clk 0:00:22]} 41. Ng3 {[%clk 0:00:41]}  Nxg3+ {[%clk 0:00:19]} 42. Qxg3 {[%clk 0:00:41]}  Qxh5+ {[%clk 0:00:19]} 43. Rh2 {[%clk 0:00:40]}  Qg5 {[%clk 0:00:18]} 44. Qxb8+ {[%clk 0:00:35]}  Kh7 {[%clk 0:00:18]} 45. Qg3 {[%clk 0:00:33]}  f5 {[%clk 0:00:17]} 46. Nf6+ {[%clk 0:00:17]}  Bxf6 {[%clk 0:00:17]} 47. Qxg5 {[%clk 0:00:17]}  Bxg5 {[%clk 0:00:18]} 48. Re2 {[%clk 0:00:16]}  Bf6 {[%clk 0:00:07]} 49. Rxe6 {[%clk 0:00:17]}  Bd4 {[%clk 0:00:07]} 50. a4 {[%clk 0:00:16]}  f4 {[%clk 0:00:06]} 51. Kg2 {[%clk 0:00:16]}  Be3 {[%clk 0:00:06]} 52. Kf3 {[%clk 0:00:16]}  h5 {[%clk 0:00:06]} 53. Kg2 {[%clk 0:00:13]}  Kg7 {[%clk 0:00:06]} 54. Kh3 {[%clk 0:00:11]}  Bd4 {[%clk 0:00:05]} 55. Re4 {[%clk 0:00:07]}  Be3 {[%clk 0:00:04]} 56. Re6 {[%clk 0:00:07]}  Kf7 {[%clk 0:00:05]} 57. Rc6 {[%clk 0:00:07]}  f3 {[%clk 0:00:04]} 58. Rc3 {[%clk 0:00:04]}  f2 {[%clk 0:00:03]} 59. Kg2 {[%clk 0:00:05]}  Bd4 {[%clk 0:00:03]} 60. Rc6 {[%clk 0:00:05]}  Kg7 {[%clk 0:00:03]} 61. Rc4 {[%clk 0:00:04]}  Be3 {[%clk 0:00:03]} 62. Rh4 {[%clk 0:00:04]}  Kg6 {[%clk 0:00:03]} 63. Re4 {[%clk 0:00:05]}  Bc5 {[%clk 0:00:03]} 64. Re6+ {[%clk 0:00:05]}  Kf5 {[%clk 0:00:03]} 65. Rc6 {[%clk 0:00:04]}  h4 {[%clk 0:00:03]} 66. a5 {[%clk 0:00:04]}  h3+ {[%clk 0:00:03]} 67. Kf1 {[%clk 0:00:04]}  h2 {[%clk 0:00:03]} 68. Rh6 {[%clk 0:00:03]}  bxa5 {[%clk 0:00:04]} 69. Rh5+ {[%clk 0:00:03]}  Ke4 {[%clk 0:00:04]} 70. Rxh2 {[%clk 0:00:03]}  a4 {[%clk 0:00:04]} 71. Rh4+ {[%clk 0:00:03]}  Kd3 {[%clk 0:00:05]} 72. Rxa4 {[%clk 0:00:03]}  Be3 {[%clk 0:00:06]} 73. Ra3+ {[%clk 0:00:02]}  Kd4 {[%clk 0:00:06]} 74. Ke2 {[%clk 0:00:02]}  Ke4 {[%clk 0:00:07]} 75. Ra4+ {[%clk 0:00:01]}  Bd4 {[%clk 0:00:07]} 76. Rb4 {[%clk 0:00:01]}  Kd5 {[%clk 0:00:07]} 0-1


[Site "https://www.chess.com"]

[Event "Titled Tuesday Blitz March 22 Early 2022"]
[White "Ruperez Benito, Antonio"]
[Black "Zemerov, Vladimir"]
[WhiteFideId "22245049"]
[BlackFideId "4111583"]
[WhiteElo "2249"]
[BlackElo "2277"]
[Result "1/2-1/2"]
[Round "01"]
[TimeControl "180+1"]
[Date "2022.03.22"]
[WhiteClock "0:00:25"]
[BlackClock "0:01:30"]

1. e4 {[%clk 0:02:36]}  Nc6 {[%clk 0:02:56]} 2. Nf3 {[%clk 0:02:36]}  d5 {[%clk 0:02:56]} 3. e5 {[%clk 0:02:36]}  Bg4 {[%clk 0:02:52]} 4. Bb5 {[%clk 0:02:35]}  Qd7 {[%clk 0:02:48]} 5. h3 {[%clk 0:02:33]}  Bxf3 {[%clk 0:02:47]} 6. Qxf3 {[%clk 0:02:33]}  e6 {[%clk 0:02:48]} 7. O-O {[%clk 0:02:29]}  a6 {[%clk 0:02:48]} 8. Bxc6 {[%clk 0:02:29]}  Qxc6 {[%clk 0:02:48]} 9. c3 {[%clk 0:02:28]}  Ne7 {[%clk 0:02:47]} 10. d4 {[%clk 0:02:29]}  Qb6 {[%clk 0:02:45]} 11. Nd2 {[%clk 0:02:25]}  c5 {[%clk 0:02:43]} 12. Nb3 {[%clk 0:02:25]}  Nf5 {[%clk 0:02:41]} 13. dxc5 {[%clk 0:02:20]}  Bxc5 {[%clk 0:02:38]} 14. Nxc5 {[%clk 0:02:20]}  Qxc5 {[%clk 0:02:38]} 15. g4 {[%clk 0:02:21]}  Nh4 {[%clk 0:02:23]} 16. Qg3 {[%clk 0:02:18]}  Qe7 {[%clk 0:02:20]} 17. f4 {[%clk 0:02:14]}  h5 {[%clk 0:02:19]} 18. f5 {[%clk 0:02:08]}  hxg4 {[%clk 0:02:19]} 19. hxg4 {[%clk 0:02:00]}  O-O-O {[%clk 0:02:07]} 20. Be3 {[%clk 0:01:53]}  Kb8 {[%clk 0:02:06]} 21. f6 {[%clk 0:01:30]}  Qf8 {[%clk 0:02:03]} 22. Bg5 {[%clk 0:01:24]}  Ng6 {[%clk 0:01:46]} 23. fxg7 {[%clk 0:01:23]}  Qxg7 {[%clk 0:01:46]} 24. Bf6 {[%clk 0:01:22]}  Qh7 {[%clk 0:01:46]} 25. Bxh8 {[%clk 0:01:08]}  Rxh8 {[%clk 0:01:45]} 26. Qg2 {[%clk 0:01:07]}  Qh6 {[%clk 0:01:36]} 27. Rxf7 {[%clk 0:00:45]}  Qe3+ {[%clk 0:01:35]} 28. Qf2 {[%clk 0:00:44]}  Qh3 {[%clk 0:01:32]} 29. Qg2 {[%clk 0:00:37]}  Qe3+ {[%clk 0:01:31]} 30. Qf2 {[%clk 0:00:32]}  Qh3 {[%clk 0:01:30]} 31. Qg2 {[%clk 0:00:25]}  Qe3+ {[%clk 0:01:30]} 1/2-1/2


[Site "https://www.chess.com"]

[Event "Titled Tuesday Blitz March 22 Early 2022"]
[White "Sailer, Mike"]
[Black "Coto Mederos, Michel"]
[WhiteFideId "2012901"]
[BlackFideId "3508528"]
[WhiteElo "2109"]
[BlackElo "2427"]
[Result "0-1"]
[Round "01"]
[TimeControl "180+1"]
[Date "2022.03.22"]
[WhiteClock "0:00:34"]
[BlackClock "0:00:30"]

1. d4 {[%clk 0:02:58]}  d5 {[%clk 0:02:52]} 2. Nf3 {[%clk 0:02:58]}  Nf6 {[%clk 0:02:52]} 3. Bf4 {[%clk 0:02:58]}  c5 {[%clk 0:02:50]} 4. e3 {[%clk 0:02:58]}  Nc6 {[%clk 0:02:50]} 5. Nc3 {[%clk 0:02:58]}  Bg4 {[%clk 0:02:32]} 6. Be2 {[%clk 0:02:58]}  e6 {[%clk 0:02:32]} 7. h3 {[%clk 0:02:56]}  Bxf3 {[%clk 0:02:27]} 8. Bxf3 {[%clk 0:02:57]}  cxd4 {[%clk 0:02:27]} 9. exd4 {[%clk 0:02:54]}  Bd6 {[%clk 0:02:27]} 10. Bxd6 {[%clk 0:02:54]}  Qxd6 {[%clk 0:02:28]} 11. O-O {[%clk 0:02:51]}  O-O {[%clk 0:02:27]} 12. Ne2 {[%clk 0:02:48]}  Qb4 {[%clk 0:02:17]} 13. Rb1 {[%clk 0:02:43]}  Rac8 {[%clk 0:02:10]} 14. c3 {[%clk 0:02:44]}  Qa5 {[%clk 0:02:10]} 15. a3 {[%clk 0:02:44]}  Qc7 {[%clk 0:02:07]} 16. Nc1 {[%clk 0:02:43]}  Na5 {[%clk 0:02:07]} 17. Nd3 {[%clk 0:02:42]}  Nc4 {[%clk 0:02:06]} 18. Qe2 {[%clk 0:02:33]}  Ne8 {[%clk 0:02:00]} 19. g3 {[%clk 0:02:32]}  Ned6 {[%clk 0:01:59]} 20. Bg2 {[%clk 0:02:29]}  Rfe8 {[%clk 0:01:57]} 21. f4 {[%clk 0:02:26]}  Qd8 {[%clk 0:01:41]} 22. Ne5 {[%clk 0:02:16]}  Qf6 {[%clk 0:01:31]} 23. g4 {[%clk 0:02:07]}  Qh4 {[%clk 0:01:25]} 24. Nxc4 {[%clk 0:01:50]}  Nxc4 {[%clk 0:01:23]} 25. Rbe1 {[%clk 0:01:34]}  Nd6 {[%clk 0:01:20]} 26. Qf2 {[%clk 0:01:27]}  Qxf2+ {[%clk 0:01:13]} 27. Rxf2 {[%clk 0:01:28]}  g6 {[%clk 0:01:11]} 28. Rfe2 {[%clk 0:01:28]}  Kf8 {[%clk 0:01:06]} 29. Kh2 {[%clk 0:01:17]}  Rc7 {[%clk 0:01:05]} 30. Kg3 {[%clk 0:01:17]}  Rce7 {[%clk 0:01:03]} 31. Kh4 {[%clk 0:01:16]}  h6 {[%clk 0:01:02]} 32. Kg3 {[%clk 0:01:16]}  f5 {[%clk 0:01:01]} 33. b3 {[%clk 0:01:06]}  Ne4+ {[%clk 0:00:59]} 34. Bxe4 {[%clk 0:01:06]}  dxe4 {[%clk 0:00:57]} 35. Rc2 {[%clk 0:00:56]}  Rd7 {[%clk 0:00:56]} 36. Kf2 {[%clk 0:00:55]}  Rc8 {[%clk 0:00:56]} 37. Rec1 {[%clk 0:00:55]}  Ke7 {[%clk 0:00:53]} 38. Ke3 {[%clk 0:00:56]}  Kd6 {[%clk 0:00:53]} 39. c4 {[%clk 0:00:56]}  Ke7 {[%clk 0:00:52]} 40. Rd2 {[%clk 0:00:54]}  Rcd8 {[%clk 0:00:52]} 41. Rcd1 {[%clk 0:00:54]}  Rd6 {[%clk 0:00:52]} 42. Ke2 {[%clk 0:00:51]}  g5 {[%clk 0:00:49]} 43. Ke3 {[%clk 0:00:49]}  Kf6 {[%clk 0:00:47]} 44. d5 {[%clk 0:00:46]}  b5 {[%clk 0:00:35]} 45. dxe6 {[%clk 0:00:42]}  gxf4+ {[%clk 0:00:34]} 46. Kxf4 {[%clk 0:00:38]}  Rxd2 {[%clk 0:00:33]} 47. Rxd2 {[%clk 0:00:34]}  Rxd2 {[%clk 0:00:34]} 48. gxf5 {[%clk 0:00:35]}  bxc4 {[%clk 0:00:31]} 49. bxc4 {[%clk 0:00:35]}  Rd4 {[%clk 0:00:31]} 50. c5 {[%clk 0:00:34]}  Rc4 {[%clk 0:00:30]} 51. c6 {[%clk 0:00:33]}  Rxc6 {[%clk 0:00:30]} 52. Kxe4 {[%clk 0:00:34]}  Rc5 {[%clk 0:00:30]} 0-1


[Site "https://www.chess.com"]

[Event "Titled Tuesday Blitz March 22 Early 2022"]
[White "Salinas Herrera, Pablo"]
[Black "Gracia Alvarez, Gerardo Antonio"]
[WhiteFideId "3407128"]
[BlackFideId "5109124"]
[WhiteElo "2541"]
[BlackElo "2139"]
[Result "1-0"]
[Round "01"]
[TimeControl "180+1"]
[Date "2022.03.22"]
[WhiteClock "0:00:09"]
[BlackClock "0:00:09"]

1. d4 {[%clk 0:03:00]}  Nf6 {[%clk 0:02:59]} 2. Nf3 {[%clk 0:02:58]}  g6 {[%clk 0:02:59]} 3. Bf4 {[%clk 0:02:58]}  Bg7 {[%clk 0:02:59]} 4. e3 {[%clk 0:02:57]}  d6 {[%clk 0:02:59]} 5. h3 {[%clk 0:02:57]}  O-O {[%clk 0:02:58]} 6. Bh2 {[%clk 0:02:58]}  Nc6 {[%clk 0:02:58]} 7. Be2 {[%clk 0:02:57]}  e5 {[%clk 0:02:58]} 8. O-O {[%clk 0:02:55]}  exd4 {[%clk 0:02:53]} 9. exd4 {[%clk 0:02:55]}  Re8 {[%clk 0:02:45]} 10. c4 {[%clk 0:02:46]}  Ne4 {[%clk 0:02:43]} 11. Nc3 {[%clk 0:02:39]}  Bf5 {[%clk 0:02:35]} 12. Nd5 {[%clk 0:02:37]}  Be6 {[%clk 0:02:00]} 13. Ne3 {[%clk 0:02:20]}  Bd7 {[%clk 0:01:55]} 14. Rc1 {[%clk 0:02:07]}  f5 {[%clk 0:01:55]} 15. a3 {[%clk 0:02:03]}  a5 {[%clk 0:01:44]} 16. Nd5 {[%clk 0:01:51]}  Kh8 {[%clk 0:01:38]} 17. Re1 {[%clk 0:01:47]}  a4 {[%clk 0:01:35]} 18. Bf1 {[%clk 0:01:47]}  Na5 {[%clk 0:01:32]} 19. Qd3 {[%clk 0:01:41]}  Nb3 {[%clk 0:01:30]} 20. Rcd1 {[%clk 0:01:41]}  c6 {[%clk 0:01:27]} 21. Nc3 {[%clk 0:01:40]}  Nxc3 {[%clk 0:01:22]} 22. Qxc3 {[%clk 0:01:41]}  c5 {[%clk 0:01:17]} 23. Bxd6 {[%clk 0:01:35]}  cxd4 {[%clk 0:01:09]} 24. Qb4 {[%clk 0:01:31]}  Bc6 {[%clk 0:01:08]} 25. Ne5 {[%clk 0:01:27]}  Qf6 {[%clk 0:01:00]} 26. Nxc6 {[%clk 0:01:00]}  bxc6 {[%clk 0:01:01]} 27. c5 {[%clk 0:01:00]}  d3 {[%clk 0:00:50]} 28. Bxd3 {[%clk 0:00:53]}  Qxb2 {[%clk 0:00:49]} 29. Rxe8+ {[%clk 0:00:51]}  Rxe8 {[%clk 0:00:48]} 30. Qxa4 {[%clk 0:00:52]}  Nd4 {[%clk 0:00:35]} 31. Bf1 {[%clk 0:00:43]}  h6 {[%clk 0:00:35]} 32. Qb4 {[%clk 0:00:37]}  Ne2+ {[%clk 0:00:25]} 33. Kh1 {[%clk 0:00:36]}  Qc2 {[%clk 0:00:23]} 34. Qd2 {[%clk 0:00:26]}  Qxd2 {[%clk 0:00:18]} 35. Rxd2 {[%clk 0:00:27]}  Nc3 {[%clk 0:00:19]} 36. g3 {[%clk 0:00:14]}  Re1 {[%clk 0:00:19]} 37. Kg2 {[%clk 0:00:14]}  Ra1 {[%clk 0:00:15]} 38. Bf4 {[%clk 0:00:09]}  Rxa3 {[%clk 0:00:14]} 39. Rd8+ {[%clk 0:00:09]}  Kh7 {[%clk 0:00:15]} 40. Rd7 {[%clk 0:00:10]}  Kg8 {[%clk 0:00:12]} 41. Bc4+ {[%clk 0:00:10]}  Nd5 {[%clk 0:00:11]} 42. Bxd5+ {[%clk 0:00:07]}  cxd5 {[%clk 0:00:12]} 43. c6 {[%clk 0:00:08]}  Rc3 {[%clk 0:00:12]} 44. c7 {[%clk 0:00:08]}  g5 {[%clk 0:00:10]} 45. Rxg7+ {[%clk 0:00:08]}  Kxg7 {[%clk 0:00:09]} 46. Be5+ {[%clk 0:00:09]} 1-0


[Site "https://www.chess.com"]

[Event "Titled Tuesday Blitz March 22 Early 2022"]
[White "Santos Flores, Alberto"]
[Black "Matlakov, Maxim"]
[WhiteFideId "3601234"]
[BlackFideId "4168003"]
[WhiteElo "2235"]
[BlackElo "2669"]
[Result "0-1"]
[Round "01"]
[TimeControl "180+1"]
[Date "2022.03.22"]
[WhiteClock "0:00:05"]
[BlackClock "0:00:30"]

1. e4 {[%clk 0:02:55]}  c5 {[%clk 0:02:59]} 2. Nf3 {[%clk 0:02:54]}  d6 {[%clk 0:03:00]} 3. Bb5+ {[%clk 0:02:50]}  Bd7 {[%clk 0:02:58]} 4. Bxd7+ {[%clk 0:02:50]}  Nxd7 {[%clk 0:02:59]} 5. c4 {[%clk 0:02:48]}  e5 {[%clk 0:02:57]} 6. Nc3 {[%clk 0:02:46]}  g6 {[%clk 0:02:56]} 7. d3 {[%clk 0:02:46]}  Bg7 {[%clk 0:02:55]} 8. O-O {[%clk 0:02:44]}  Ne7 {[%clk 0:02:55]} 9. Ne1 {[%clk 0:02:41]}  O-O {[%clk 0:02:53]} 10. Nc2 {[%clk 0:02:41]}  h6 {[%clk 0:02:51]} 11. Ne3 {[%clk 0:02:40]}  f5 {[%clk 0:02:50]} 12. Ned5 {[%clk 0:02:40]}  f4 {[%clk 0:02:49]} 13. Nxe7+ {[%clk 0:02:39]}  Qxe7 {[%clk 0:02:50]} 14. Nd5 {[%clk 0:02:39]}  Qf7 {[%clk 0:02:49]} 15. a3 {[%clk 0:02:28]}  h5 {[%clk 0:02:43]} 16. b4 {[%clk 0:02:27]}  g5 {[%clk 0:02:38]} 17. Rb1 {[%clk 0:02:19]}  b6 {[%clk 0:02:36]} 18. a4 {[%clk 0:02:14]}  Rab8 {[%clk 0:02:33]} 19. Ba3 {[%clk 0:02:03]}  g4 {[%clk 0:02:32]} 20. a5 {[%clk 0:01:48]}  Nf6 {[%clk 0:02:32]} 21. axb6 {[%clk 0:01:44]}  axb6 {[%clk 0:02:31]} 22. bxc5 {[%clk 0:01:44]}  Nxd5 {[%clk 0:02:19]} 23. cxd5 {[%clk 0:01:41]}  bxc5 {[%clk 0:02:19]} 24. Qc2 {[%clk 0:01:38]}  h4 {[%clk 0:01:56]} 25. Rxb8 {[%clk 0:01:35]}  Rxb8 {[%clk 0:01:57]} 26. Rb1 {[%clk 0:01:34]}  Ra8 {[%clk 0:01:57]} 27. Bc1 {[%clk 0:01:24]}  h3 {[%clk 0:01:57]} 28. g3 {[%clk 0:01:02]}  Bh6 {[%clk 0:01:53]} 29. Qb2 {[%clk 0:00:45]}  fxg3 {[%clk 0:01:03]} 30. fxg3 {[%clk 0:00:45]}  Bxc1 {[%clk 0:01:03]} 31. Rxc1 {[%clk 0:00:43]}  Qf3 {[%clk 0:01:03]} 32. Qd2 {[%clk 0:00:40]}  Ra2 {[%clk 0:00:39]} 33. Qg5+ {[%clk 0:00:19]}  Kf7 {[%clk 0:00:39]} 34. Qh5+ {[%clk 0:00:12]}  Ke7 {[%clk 0:00:38]} 35. Qg5+ {[%clk 0:00:12]}  Qf6 {[%clk 0:00:37]} 36. Qxf6+ {[%clk 0:00:11]}  Kxf6 {[%clk 0:00:37]} 37. Rf1+ {[%clk 0:00:10]}  Ke7 {[%clk 0:00:37]} 38. Rf5 {[%clk 0:00:08]}  Rg2+ {[%clk 0:00:37]} 39. Kh1 {[%clk 0:00:07]}  Rd2 {[%clk 0:00:37]} 40. Kg1 {[%clk 0:00:07]}  Rxd3 {[%clk 0:00:35]} 41. Rg5 {[%clk 0:00:08]}  Rd1+ {[%clk 0:00:34]} 42. Kf2 {[%clk 0:00:07]}  Rd2+ {[%clk 0:00:34]} 43. Kg1 {[%clk 0:00:07]}  Rg2+ {[%clk 0:00:33]} 44. Kf1 {[%clk 0:00:06]}  Rxh2 {[%clk 0:00:32]} 45. Rxg4 {[%clk 0:00:07]}  c4 {[%clk 0:00:32]} 46. Rh4 {[%clk 0:00:08]}  c3 {[%clk 0:00:32]} 47. Rh8 {[%clk 0:00:05]}  c2 {[%clk 0:00:30]} 0-1


[Site "https://www.chess.com"]

[Event "Titled Tuesday Blitz March 22 Early 2022"]
[White "Sarana, Alexey"]
[Black "Ismayil, Malak"]
[WhiteFideId "24133795"]
[BlackFideId "13412604"]
[WhiteElo "2666"]
[BlackElo "1879"]
[Result "1-0"]
[Round "01"]
[TimeControl "180+1"]
[Date "2022.03.22"]
[WhiteClock "0:01:52"]
[BlackClock "0:00:44"]

1. d4 {[%clk 0:03:00]}  Nf6 {[%clk 0:02:59]} 2. c4 {[%clk 0:03:01]}  e6 {[%clk 0:02:59]} 3. Nc3 {[%clk 0:03:01]}  Bb4 {[%clk 0:02:58]} 4. Nf3 {[%clk 0:03:00]}  O-O {[%clk 0:02:58]} 5. Bg5 {[%clk 0:02:58]}  b6 {[%clk 0:02:48]} 6. e4 {[%clk 0:02:51]}  h6 {[%clk 0:02:41]} 7. Bh4 {[%clk 0:02:50]}  Be7 {[%clk 0:02:40]} 8. Bd3 {[%clk 0:02:49]}  d6 {[%clk 0:02:40]} 9. Qe2 {[%clk 0:02:44]}  Nbd7 {[%clk 0:02:39]} 10. e5 {[%clk 0:02:41]}  dxe5 {[%clk 0:02:25]} 11. dxe5 {[%clk 0:02:42]}  Ne8 {[%clk 0:02:12]} 12. Bxe7 {[%clk 0:02:36]}  Qxe7 {[%clk 0:02:12]} 13. Qe4 {[%clk 0:02:36]}  f5 {[%clk 0:02:11]} 14. Qxa8 {[%clk 0:02:33]}  Nc5 {[%clk 0:02:07]} 15. Bc2 {[%clk 0:02:32]}  Bb7 {[%clk 0:01:57]} 16. Qxa7 {[%clk 0:02:31]}  g5 {[%clk 0:01:50]} 17. Qa3 {[%clk 0:02:29]}  Ng7 {[%clk 0:01:48]} 18. b4 {[%clk 0:02:28]}  Ra8 {[%clk 0:01:48]} 19. Qb2 {[%clk 0:02:28]}  Nd7 {[%clk 0:01:48]} 20. Ne2 {[%clk 0:02:27]}  g4 {[%clk 0:01:47]} 21. Nfd4 {[%clk 0:02:26]}  Nxe5 {[%clk 0:01:45]} 22. O-O {[%clk 0:02:22]}  Nxc4 {[%clk 0:01:44]} 23. Qc3 {[%clk 0:02:22]}  Nd6 {[%clk 0:01:43]} 24. Bb3 {[%clk 0:02:22]}  Kh7 {[%clk 0:01:42]} 25. Rae1 {[%clk 0:02:19]}  Ne4 {[%clk 0:01:31]} 26. Qc2 {[%clk 0:02:17]}  c5 {[%clk 0:01:23]} 27. bxc5 {[%clk 0:02:16]}  bxc5 {[%clk 0:01:24]} 28. Nb5 {[%clk 0:02:12]}  Ba6 {[%clk 0:01:12]} 29. a4 {[%clk 0:02:09]}  Qf6 {[%clk 0:01:04]} 30. Ng3 {[%clk 0:02:08]}  Ng5 {[%clk 0:01:01]} 31. Qxc5 {[%clk 0:02:03]}  h5 {[%clk 0:00:57]} 32. Qe5 {[%clk 0:01:57]}  Qg6 {[%clk 0:00:55]} 33. Ne2 {[%clk 0:01:53]}  Re8 {[%clk 0:00:49]} 34. Nf4 {[%clk 0:01:53]}  Qh6 {[%clk 0:00:49]} 35. Nc7 {[%clk 0:01:52]}  Re7 {[%clk 0:00:44]} 36. Nxa6 {[%clk 0:01:52]} 1-0


[Site "https://www.chess.com"]